[Event "Titled Tuesday Blitz April 12 Late 2022"]
[White "Akrakan"]
[Black "Harish, Neeraj"]
[BlackFideId "30958130"]
[WhiteElo "2163"]
[BlackElo "1574"]
[Result "1-0"]
[Round "10"]
[TimeControl "180+1"]
[Date "2022.04.13"]
[WhiteClock "0:00:37"]
[BlackClock "0:00:01"]

1. e4 {[%clk 0:02:56]}  c5 {[%clk 0:02:58]} 2. Nf3 {[%clk 0:02:57]}  Nc6 {[%clk 0:02:58]} 3. c3 {[%clk 0:02:56]}  Nf6 {[%clk 0:02:57]} 4. e5 {[%clk 0:02:55]}  Nd5 {[%clk 0:02:56]} 5. d4 {[%clk 0:02:55]}  cxd4 {[%clk 0:02:56]} 6. cxd4 {[%clk 0:02:56]}  d6 {[%clk 0:02:57]} 7. exd6 {[%clk 0:02:55]}  Bg4 {[%clk 0:02:56]} 8. dxe7 {[%clk 0:02:45]}  Qxe7+ {[%clk 0:02:55]} 9. Be2 {[%clk 0:02:45]}  Bxf3 {[%clk 0:02:55]} 10. gxf3 {[%clk 0:02:45]}  O-O-O {[%clk 0:02:55]} 11. Nc3 {[%clk 0:02:44]}  Ndb4 {[%clk 0:02:28]} 12. Be3 {[%clk 0:02:40]}  g6 {[%clk 0:02:16]} 13. a3 {[%clk 0:02:40]}  Nd5 {[%clk 0:02:16]} 14. Nxd5 {[%clk 0:02:40]}  Rxd5 {[%clk 0:02:17]} 15. Qb3 {[%clk 0:02:27]}  Rd8 {[%clk 0:02:08]} 16. O-O-O {[%clk 0:02:26]}  Bg7 {[%clk 0:02:05]} 17. d5 {[%clk 0:02:24]}  Na5 {[%clk 0:01:51]} 18. Qa4 {[%clk 0:02:11]}  b6 {[%clk 0:01:26]} 19. Kb1 {[%clk 0:02:10]}  Kb8 {[%clk 0:01:10]} 20. Rhe1 {[%clk 0:01:46]}  Qb7 {[%clk 0:00:38]} 21. Bf4+ {[%clk 0:01:23]}  Ka8 {[%clk 0:00:31]} 22. Bd3 {[%clk 0:01:19]}  Rd7 {[%clk 0:00:17]} 23. Bb5 {[%clk 0:00:55]}  Rdd8 {[%clk 0:00:12]} 24. d6 {[%clk 0:00:51]}  a6 {[%clk 0:00:06]} 25. Bc4 {[%clk 0:00:43]}  Nxc4 {[%clk 0:00:03]} 26. Qxc4 {[%clk 0:00:43]}  Rc8 {[%clk 0:00:03]} 27. Qb3 {[%clk 0:00:40]}  Qc6 {[%clk 0:00:01]} 28. Re7 {[%clk 0:00:37]} 1-0


[Site "https://www.chess.com"]

[Event "Titled Tuesday Blitz April 12 Late 2022"]
[White "Aldokhin, Ivan"]
[Black "Pranav, V"]
[WhiteFideId "24115720"]
[BlackFideId "25060783"]
[WhiteElo "2231"]
[BlackElo "2349"]
[Result "1-0"]
[Round "10"]
[TimeControl "180+1"]
[Date "2022.04.12"]
[WhiteClock "0:00:21"]
[BlackClock "0:01:36"]

1. e4 {[%clk 0:03:00]}  e5 {[%clk 0:03:00]} 2. Nf3 {[%clk 0:03:01]}  Nf6 {[%clk 0:03:00]} 3. d4 {[%clk 0:03:00]}  exd4 {[%clk 0:02:59]} 4. e5 {[%clk 0:03:00]}  Ne4 {[%clk 0:02:58]} 5. Qxd4 {[%clk 0:03:00]}  d5 {[%clk 0:02:58]} 6. exd6 {[%clk 0:03:00]}  Nxd6 {[%clk 0:02:59]} 7. Nc3 {[%clk 0:03:00]}  Nc6 {[%clk 0:02:59]} 8. Qe3+ {[%clk 0:03:00]}  Be7 {[%clk 0:02:58]} 9. Bd2 {[%clk 0:02:45]}  O-O {[%clk 0:02:57]} 10. O-O-O {[%clk 0:02:45]}  Bf6 {[%clk 0:02:57]} 11. Nd5 {[%clk 0:02:40]}  Re8 {[%clk 0:02:55]} 12. Nxf6+ {[%clk 0:02:31]}  Qxf6 {[%clk 0:02:56]} 13. Qf4 {[%clk 0:02:29]}  Qe6 {[%clk 0:02:53]} 14. Bd3 {[%clk 0:02:08]}  Qxa2 {[%clk 0:02:49]} 15. Bc3 {[%clk 0:01:58]}  Be6 {[%clk 0:02:37]} 16. Qg5 {[%clk 0:01:12]}  f6 {[%clk 0:02:10]} 17. Bxf6 {[%clk 0:01:02]}  Qa1+ {[%clk 0:02:09]} 18. Kd2 {[%clk 0:01:02]}  Qa5+ {[%clk 0:02:10]} 19. Bc3 {[%clk 0:00:55]}  Nc4+ {[%clk 0:02:02]} 20. Bxc4 {[%clk 0:00:48]}  Rad8+ {[%clk 0:02:02]} 21. Bd3 {[%clk 0:00:45]}  Qxg5+ {[%clk 0:01:57]} 22. Nxg5 {[%clk 0:00:45]}  Bf5 {[%clk 0:01:58]} 23. Rhe1 {[%clk 0:00:43]}  Rf8 {[%clk 0:01:57]} 24. f3 {[%clk 0:00:38]}  Bxd3 {[%clk 0:01:55]} 25. cxd3 {[%clk 0:00:38]}  Rf5 {[%clk 0:01:56]} 26. Ne6 {[%clk 0:00:36]}  Rd7 {[%clk 0:01:54]} 27. Re4 {[%clk 0:00:31]}  Rfd5 {[%clk 0:01:53]} 28. Nf4 {[%clk 0:00:29]}  R5d6 {[%clk 0:01:51]} 29. h4 {[%clk 0:00:29]}  b5 {[%clk 0:01:46]} 30. b4 {[%clk 0:00:27]}  g6 {[%clk 0:01:36]} 31. Re6 {[%clk 0:00:21]} 1-0


[Site "https://www.chess.com"]

[Event "Titled Tuesday Blitz April 12 Late 2022"]
[White "Antonova, Nadezhda"]
[Black "Winkels, Marcel"]
[WhiteFideId "14700182"]
[BlackFideId "1003887"]
[WhiteElo "1789"]
[BlackElo "1900"]
[Result "0-1"]
[Round "10"]
[TimeControl "180+1"]
[Date "2022.04.13"]
[WhiteClock "0:00:01"]
[BlackClock "0:00:01"]

1. Nf3 {[%clk 0:02:58]}  Nf6 {[%clk 0:02:58]} 2. b3 {[%clk 0:02:59]}  g6 {[%clk 0:02:59]} 3. Bb2 {[%clk 0:02:59]}  Bg7 {[%clk 0:02:59]} 4. g3 {[%clk 0:03:00]}  O-O {[%clk 0:02:59]} 5. Bg2 {[%clk 0:03:00]}  d6 {[%clk 0:03:00]} 6. d4 {[%clk 0:03:01]}  e5 {[%clk 0:02:57]} 7. dxe5 {[%clk 0:03:00]}  Nfd7 {[%clk 0:02:56]} 8. c4 {[%clk 0:02:51]}  Nc6 {[%clk 0:02:55]} 9. O-O {[%clk 0:02:50]}  Ndxe5 {[%clk 0:02:53]} 10. Qd2 {[%clk 0:02:50]}  Bg4 {[%clk 0:02:43]} 11. Nc3 {[%clk 0:02:46]}  Bxf3 {[%clk 0:02:27]} 12. exf3 {[%clk 0:02:46]}  Re8 {[%clk 0:02:27]} 13. Nd5 {[%clk 0:02:42]}  Ne7 {[%clk 0:02:25]} 14. f4 {[%clk 0:02:34]}  Nxd5 {[%clk 0:02:13]} 15. Bxd5 {[%clk 0:02:29]}  Nc6 {[%clk 0:02:11]} 16. Bxg7 {[%clk 0:02:26]}  Kxg7 {[%clk 0:02:10]} 17. Rfe1 {[%clk 0:02:16]}  Qf6 {[%clk 0:02:02]} 18. Rad1 {[%clk 0:02:11]}  a5 {[%clk 0:01:55]} 19. Re3 {[%clk 0:02:08]}  Rab8 {[%clk 0:01:45]} 20. Rde1 {[%clk 0:02:06]}  Rxe3 {[%clk 0:01:44]} 21. Qxe3 {[%clk 0:02:03]}  Nb4 {[%clk 0:01:42]} 22. a3 {[%clk 0:01:56]}  Nxd5 {[%clk 0:01:41]} 23. cxd5 {[%clk 0:01:56]}  Qb2 {[%clk 0:01:24]} 24. Rc1 {[%clk 0:01:37]}  Rc8 {[%clk 0:01:06]} 25. a4 {[%clk 0:01:28]}  Qf6 {[%clk 0:00:46]} 26. Qc3 {[%clk 0:01:21]}  Qxc3 {[%clk 0:00:43]} 27. Rxc3 {[%clk 0:01:20]}  Kf6 {[%clk 0:00:44]} 28. Kf1 {[%clk 0:01:14]}  Ke7 {[%clk 0:00:43]} 29. Ke2 {[%clk 0:01:13]}  Kd7 {[%clk 0:00:44]} 30. Kd3 {[%clk 0:01:14]}  Re8 {[%clk 0:00:44]} 31. Kc4 {[%clk 0:01:11]}  Re2 {[%clk 0:00:42]} 32. Rf3 {[%clk 0:01:09]}  f5 {[%clk 0:00:36]} 33. Kb5 {[%clk 0:01:03]}  Rd2 {[%clk 0:00:29]} 34. Kxa5 {[%clk 0:00:58]}  Rxd5+ {[%clk 0:00:28]} 35. Kb4 {[%clk 0:00:59]}  Rd2 {[%clk 0:00:27]} 36. Kc3 {[%clk 0:00:58]}  Ra2 {[%clk 0:00:26]} 37. h3 {[%clk 0:00:48]}  c6 {[%clk 0:00:25]} 38. Kb4 {[%clk 0:00:40]}  d5 {[%clk 0:00:20]} 39. Kc5 {[%clk 0:00:39]}  Rc2+ {[%clk 0:00:19]} 40. Kb6 {[%clk 0:00:37]}  d4 {[%clk 0:00:18]} 41. Rd3 {[%clk 0:00:30]}  c5 {[%clk 0:00:17]} 42. Kxb7 {[%clk 0:00:27]}  Rc3 {[%clk 0:00:17]} 43. Rd2 {[%clk 0:00:20]}  Rxb3+ {[%clk 0:00:16]} 44. Ka6 {[%clk 0:00:20]}  Kc6 {[%clk 0:00:15]} 45. a5 {[%clk 0:00:18]}  d3 {[%clk 0:00:13]} 46. Ka7 {[%clk 0:00:17]}  c4 {[%clk 0:00:13]} 47. a6 {[%clk 0:00:16]}  Kc7 {[%clk 0:00:10]} 48. Ka8 {[%clk 0:00:10]}  Kb6 {[%clk 0:00:05]} 49. Ra2 {[%clk 0:00:04]}  Kc7 {[%clk 0:00:04]} 50. Rd2 {[%clk 0:00:04]}  Ra3 {[%clk 0:00:01]} 51. a7 {[%clk 0:00:02]}  Rb3 {[%clk 0:00:01]} 52. Ra2 {[%clk 0:00:01]}  c3 {[%clk 0:00:01]} 0-1


[Site "https://www.chess.com"]

[Event "Titled Tuesday Blitz April 12 Late 2022"]
[White "Ashiev, Eduard"]
[Black "Putri, Regita Desyari"]
[WhiteFideId "4130090"]
[BlackFideId "7109083"]
[WhiteElo "2004"]
[BlackElo "1930"]
[Result "0-1"]
[Round "10"]
[TimeControl "180+1"]
[Date "2022.04.13"]
[WhiteClock "0:00:04"]
[BlackClock "0:00:59"]

1. d4 {[%clk 0:03:00]}  Nf6 {[%clk 0:02:59]} 2. c4 {[%clk 0:03:00]}  e6 {[%clk 0:02:59]} 3. Nc3 {[%clk 0:03:00]}  d5 {[%clk 0:02:59]} 4. Nf3 {[%clk 0:02:59]}  Be7 {[%clk 0:02:59]} 5. Bf4 {[%clk 0:02:59]}  O-O {[%clk 0:02:59]} 6. e3 {[%clk 0:02:59]}  dxc4 {[%clk 0:02:59]} 7. Bxc4 {[%clk 0:02:58]}  b6 {[%clk 0:02:59]} 8. O-O {[%clk 0:02:56]}  Ba6 {[%clk 0:02:59]} 9. Bxa6 {[%clk 0:02:53]}  Nxa6 {[%clk 0:03:00]} 10. Ne5 {[%clk 0:02:49]}  Bd6 {[%clk 0:02:55]} 11. Qf3 {[%clk 0:02:39]}  Nb4 {[%clk 0:02:53]} 12. Rad1 {[%clk 0:02:27]}  Nbd5 {[%clk 0:02:49]} 13. Bg3 {[%clk 0:02:19]}  Nxc3 {[%clk 0:02:32]} 14. bxc3 {[%clk 0:02:18]}  Qc8 {[%clk 0:02:27]} 15. Nc6 {[%clk 0:02:09]}  Kh8 {[%clk 0:02:18]} 16. Bh4 {[%clk 0:01:40]}  Nd7 {[%clk 0:02:15]} 17. e4 {[%clk 0:01:30]}  e5 {[%clk 0:02:15]} 18. d5 {[%clk 0:01:19]}  f6 {[%clk 0:02:08]} 19. Qe2 {[%clk 0:01:10]}  a5 {[%clk 0:02:01]} 20. Rd3 {[%clk 0:01:09]}  Nb8 {[%clk 0:02:01]} 21. Rh3 {[%clk 0:00:57]}  Nxc6 {[%clk 0:01:47]} 22. Qh5 {[%clk 0:00:47]}  Qe8 {[%clk 0:01:47]} 23. Qxe8 {[%clk 0:00:42]}  Rfxe8 {[%clk 0:01:47]} 24. dxc6 {[%clk 0:00:42]}  Kg8 {[%clk 0:01:40]} 25. Rd3 {[%clk 0:00:41]}  Kf7 {[%clk 0:01:40]} 26. Rfd1 {[%clk 0:00:41]}  Ke6 {[%clk 0:01:41]} 27. f3 {[%clk 0:00:38]}  b5 {[%clk 0:01:38]} 28. Bf2 {[%clk 0:00:36]}  Ra6 {[%clk 0:01:38]} 29. Rd5 {[%clk 0:00:32]}  Rb8 {[%clk 0:01:26]} 30. Bc5 {[%clk 0:00:22]}  Rxc6 {[%clk 0:01:25]} 31. Bf2 {[%clk 0:00:17]}  Rxc3 {[%clk 0:01:24]} 32. h4 {[%clk 0:00:16]}  a4 {[%clk 0:01:22]} 33. h5 {[%clk 0:00:16]}  h6 {[%clk 0:01:19]} 34. Rb1 {[%clk 0:00:15]}  b4 {[%clk 0:01:18]} 35. Be1 {[%clk 0:00:13]}  Rc4 {[%clk 0:01:10]} 36. Ra5 {[%clk 0:00:12]}  b3 {[%clk 0:01:07]} 37. axb3 {[%clk 0:00:12]}  axb3 {[%clk 0:01:05]} 38. Kh2 {[%clk 0:00:12]}  Rc2 {[%clk 0:01:02]} 39. Ra6 {[%clk 0:00:07]}  b2 {[%clk 0:01:00]} 40. Ra2 {[%clk 0:00:05]}  c5 {[%clk 0:01:00]} 41. Bg3 {[%clk 0:00:04]}  c4 {[%clk 0:00:59]} 0-1


[Site "https://www.chess.com"]

[Event "Titled Tuesday Blitz April 12 Late 2022"]
[White "Barria Zuniga, Daniel"]
[Black "Martic, Ivan"]
[WhiteFideId "3400816"]
[BlackFideId "929301"]
[WhiteElo "2414"]
[BlackElo "2317"]
[Result "0-1"]
[Round "10"]
[TimeControl "180+1"]
[Date "2022.04.13"]
[WhiteClock "0:00:20"]
[BlackClock "0:01:14"]

1. d4 {[%clk 0:02:47]}  Nf6 {[%clk 0:02:59]} 2. c4 {[%clk 0:02:46]}  g6 {[%clk 0:02:59]} 3. Nc3 {[%clk 0:02:45]}  d5 {[%clk 0:02:59]} 4. Bf4 {[%clk 0:02:43]}  Bg7 {[%clk 0:02:58]} 5. e3 {[%clk 0:02:42]}  O-O {[%clk 0:02:57]} 6. Rc1 {[%clk 0:02:43]}  c5 {[%clk 0:02:51]} 7. dxc5 {[%clk 0:02:42]}  Be6 {[%clk 0:02:41]} 8. Nf3 {[%clk 0:02:41]}  Nc6 {[%clk 0:02:38]} 9. Ng5 {[%clk 0:02:40]}  Bg4 {[%clk 0:02:37]} 10. f3 {[%clk 0:02:40]}  e5 {[%clk 0:02:36]} 11. cxd5 {[%clk 0:02:35]}  exf4 {[%clk 0:02:35]} 12. fxg4 {[%clk 0:02:32]}  Qe7 {[%clk 0:02:08]} 13. dxc6 {[%clk 0:02:29]}  Qxe3+ {[%clk 0:02:07]} 14. Be2 {[%clk 0:02:28]}  Rad8 {[%clk 0:02:01]} 15. Qc2 {[%clk 0:02:24]}  Nxg4 {[%clk 0:02:00]} 16. Nge4 {[%clk 0:00:46]}  Rfe8 {[%clk 0:01:42]} 17. cxb7 {[%clk 0:00:39]}  Bxc3+ {[%clk 0:01:32]} 18. Qxc3 {[%clk 0:00:23]}  Qxe4 {[%clk 0:01:22]} 19. O-O {[%clk 0:00:22]}  Qxe2 {[%clk 0:01:18]} 20. c6 {[%clk 0:00:21]}  Ne3 {[%clk 0:01:14]} 21. Rf2 {[%clk 0:00:20]}  Rd1+ {[%clk 0:01:14]} 0-1


[Site "https://www.chess.com"]

[Event "Titled Tuesday Blitz April 12 Late 2022"]
[White "Bortnyk, Olexandr"]
[Black "Urazayev, Arystanbek"]
[WhiteFideId "14120828"]
[BlackFideId "13709810"]
[WhiteElo "2723"]
[BlackElo "2422"]
[Result "1-0"]
[Round "10"]
[TimeControl "180+1"]
[Date "2022.04.12"]
[WhiteClock "0:00:07"]
[BlackClock "0:00:04"]

1. f3 {[%clk 0:02:43]}  e5 {[%clk 0:03:00]} 2. Nh3 {[%clk 0:02:42]}  d5 {[%clk 0:03:00]} 3. g3 {[%clk 0:02:42]}  h5 {[%clk 0:02:59]} 4. Nf2 {[%clk 0:02:40]}  h4 {[%clk 0:02:59]} 5. g4 {[%clk 0:02:36]}  c5 {[%clk 0:02:58]} 6. d3 {[%clk 0:02:34]}  Nc6 {[%clk 0:02:58]} 7. c3 {[%clk 0:02:32]}  Nge7 {[%clk 0:02:50]} 8. Bh3 {[%clk 0:02:30]}  Ng6 {[%clk 0:02:50]} 9. e3 {[%clk 0:02:30]}  Bd6 {[%clk 0:02:45]} 10. Qe2 {[%clk 0:02:28]}  O-O {[%clk 0:02:44]} 11. Na3 {[%clk 0:02:25]}  a6 {[%clk 0:02:44]} 12. Nc2 {[%clk 0:02:20]}  b5 {[%clk 0:02:44]} 13. Bd2 {[%clk 0:02:19]}  a5 {[%clk 0:02:41]} 14. a3 {[%clk 0:02:17]}  a4 {[%clk 0:02:41]} 15. Rg1 {[%clk 0:02:13]}  Na5 {[%clk 0:02:38]} 16. g5 {[%clk 0:02:10]}  Bxh3 {[%clk 0:02:36]} 17. Nxh3 {[%clk 0:02:11]}  Nb3 {[%clk 0:02:37]} 18. Rd1 {[%clk 0:02:10]}  d4 {[%clk 0:02:34]} 19. Rg4 {[%clk 0:02:02]}  f5 {[%clk 0:02:26]} 20. gxf6 {[%clk 0:02:00]}  Qxf6 {[%clk 0:02:26]} 21. Qg2 {[%clk 0:01:59]}  Ne7 {[%clk 0:02:14]} 22. Ng5 {[%clk 0:01:51]}  Qh6 {[%clk 0:01:53]} 23. Qh3 {[%clk 0:01:20]}  Ng6 {[%clk 0:01:44]} 24. Ke2 {[%clk 0:01:10]}  Nxd2 {[%clk 0:01:39]} 25. Kxd2 {[%clk 0:01:10]}  dxe3+ {[%clk 0:01:40]} 26. Nxe3 {[%clk 0:01:10]}  e4 {[%clk 0:01:30]} 27. Rxe4 {[%clk 0:00:53]}  Qxg5 {[%clk 0:01:15]} 28. Qe6+ {[%clk 0:00:52]}  Kh7 {[%clk 0:01:16]} 29. Qxd6 {[%clk 0:00:52]}  Rad8 {[%clk 0:01:10]} 30. Qe6 {[%clk 0:00:36]}  Rxf3 {[%clk 0:01:05]} 31. Kc2 {[%clk 0:00:16]}  Rf2+ {[%clk 0:00:49]} 32. Kb1 {[%clk 0:00:16]}  Rxh2 {[%clk 0:00:35]} 33. Rg4 {[%clk 0:00:16]}  Qh5 {[%clk 0:00:34]} 34. Rdg1 {[%clk 0:00:13]}  h3 {[%clk 0:00:05]} 35. Rxg6 {[%clk 0:00:13]}  Rg8 {[%clk 0:00:05]} 36. Qf7 {[%clk 0:00:06]}  Qe5 {[%clk 0:00:04]} 37. Rh6+ {[%clk 0:00:06]}  Kxh6 {[%clk 0:00:04]} 38. Qg6# {[%clk 0:00:07]} 1-0


[Site "https://www.chess.com"]

[Event "Titled Tuesday Blitz April 12 Late 2022"]
[White "Bryakin, Mikhail"]
[Black "Koziorowicz, Michal"]
[WhiteFideId "4165314"]
[BlackFideId "21809194"]
[WhiteElo "2417"]
[BlackElo "2235"]
[Result "1/2-1/2"]
[Round "10"]
[TimeControl "180+1"]
[Date "2022.04.12"]
[WhiteClock "0:01:48"]
[BlackClock "0:01:36"]

1. e4 {[%clk 0:03:00]}  c5 {[%clk 0:03:00]} 2. Nf3 {[%clk 0:02:58]}  d6 {[%clk 0:02:59]} 3. Bb5+ {[%clk 0:02:58]}  Bd7 {[%clk 0:02:59]} 4. a4 {[%clk 0:02:59]}  g6 {[%clk 0:02:59]} 5. O-O {[%clk 0:02:57]}  Bg7 {[%clk 0:02:59]} 6. d3 {[%clk 0:02:56]}  Nc6 {[%clk 0:02:58]} 7. Nc3 {[%clk 0:02:54]}  Nf6 {[%clk 0:02:58]} 8. h3 {[%clk 0:02:52]}  O-O {[%clk 0:02:58]} 9. Be3 {[%clk 0:02:53]}  a6 {[%clk 0:02:57]} 10. Bxc6 {[%clk 0:02:51]}  Bxc6 {[%clk 0:02:58]} 11. a5 {[%clk 0:02:49]}  b5 {[%clk 0:02:57]} 12. axb6 {[%clk 0:02:49]}  Qxb6 {[%clk 0:02:58]} 13. Qd2 {[%clk 0:02:49]}  Rfb8 {[%clk 0:02:56]} 14. b3 {[%clk 0:02:44]}  Nd7 {[%clk 0:02:54]} 15. Ra2 {[%clk 0:02:39]}  Qb4 {[%clk 0:02:42]} 16. Ne2 {[%clk 0:02:32]}  Qxd2 {[%clk 0:02:42]} 17. Nxd2 {[%clk 0:02:31]}  a5 {[%clk 0:02:41]} 18. Nc4 {[%clk 0:02:22]}  a4 {[%clk 0:02:41]} 19. bxa4 {[%clk 0:02:21]}  Rxa4 {[%clk 0:02:42]} 20. Rxa4 {[%clk 0:02:19]}  Bxa4 {[%clk 0:02:43]} 21. Rc1 {[%clk 0:02:17]}  Ne5 {[%clk 0:02:36]} 22. Nxe5 {[%clk 0:02:16]}  Bxe5 {[%clk 0:02:37]} 23. c3 {[%clk 0:02:13]}  Rb2 {[%clk 0:02:36]} 24. Nf4 {[%clk 0:02:07]}  Bc2 {[%clk 0:02:36]} 25. Nd5 {[%clk 0:02:03]}  e6 {[%clk 0:02:34]} 26. Ne7+ {[%clk 0:02:00]}  Kf8 {[%clk 0:02:34]} 27. Nc6 {[%clk 0:02:00]}  Bxc3 {[%clk 0:02:31]} 28. d4 {[%clk 0:02:00]}  cxd4 {[%clk 0:02:25]} 29. Nxd4 {[%clk 0:01:58]}  Bxd4 {[%clk 0:02:11]} 30. Bxd4 {[%clk 0:01:59]}  Ra2 {[%clk 0:02:10]} 31. f3 {[%clk 0:01:54]}  f5 {[%clk 0:02:09]} 32. exf5 {[%clk 0:01:53]}  gxf5 {[%clk 0:02:10]} 33. Ra1 {[%clk 0:01:48]}  Rxa1+ {[%clk 0:02:08]} 34. Bxa1 {[%clk 0:01:49]}  e5 {[%clk 0:02:07]} 35. f4 {[%clk 0:01:48]}  e4 {[%clk 0:01:53]} 36. Kf2 {[%clk 0:01:48]}  Kf7 {[%clk 0:01:53]} 37. g4 {[%clk 0:01:47]}  Ke6 {[%clk 0:01:53]} 38. Ke3 {[%clk 0:01:47]}  Bd1 {[%clk 0:01:52]} 39. g5 {[%clk 0:01:48]}  Kd5 {[%clk 0:01:50]} 40. h4 {[%clk 0:01:47]}  Kc4 {[%clk 0:01:49]} 41. Bf6 {[%clk 0:01:47]}  Bh5 {[%clk 0:01:49]} 42. Bg7 {[%clk 0:01:47]}  Kb3 {[%clk 0:01:49]} 43. Kd2 {[%clk 0:01:47]}  Bg6 {[%clk 0:01:46]} 44. Bf6 {[%clk 0:01:47]}  Kc4 {[%clk 0:01:46]} 45. Bg7 {[%clk 0:01:47]}  Bf7 {[%clk 0:01:42]} 46. Ke3 {[%clk 0:01:48]}  Kb3 {[%clk 0:01:42]} 47. Kd2 {[%clk 0:01:48]}  d5 {[%clk 0:01:42]} 48. Bf6 {[%clk 0:01:48]}  Kc4 {[%clk 0:01:42]} 49. Ke3 {[%clk 0:01:49]}  Bh5 {[%clk 0:01:42]} 50. Bg7 {[%clk 0:01:49]}  Bg6 {[%clk 0:01:39]} 51. Bf6 {[%clk 0:01:49]}  Bf7 {[%clk 0:01:40]} 52. Bg7 {[%clk 0:01:48]}  Kb3 {[%clk 0:01:36]} 53. Kd2 {[%clk 0:01:48]}  Kc4 {[%clk 0:01:33]} 54. Ke3 {[%clk 0:01:47]}  Bh5 {[%clk 0:01:33]} 55. Bf6 {[%clk 0:01:47]}  Bg6 {[%clk 0:01:34]} 56. Bg7 {[%clk 0:01:47]}  Bh5 {[%clk 0:01:35]} 57. Bf6 {[%clk 0:01:48]}  Bg6 {[%clk 0:01:35]} 58. Bg7 {[%clk 0:01:48]}  Bh5 {[%clk 0:01:36]} 1/2-1/2


[Site "https://www.chess.com"]

[Event "Titled Tuesday Blitz April 12 Late 2022"]
[White "Curtis, John"]
[Black "Melikhov, Evgeny V."]
[WhiteFideId "3200256"]
[BlackFideId "4122046"]
[WhiteElo "2203"]
[BlackElo "1931"]
[Result "0-1"]
[Round "10"]
[TimeControl "180+1"]
[Date "2022.04.13"]
[WhiteClock "0:00:15"]
[BlackClock "0:01:45"]

1. e4 {[%clk 0:02:57]}  c5 {[%clk 0:02:59]} 2. Nf3 {[%clk 0:02:54]}  d6 {[%clk 0:02:59]} 3. d4 {[%clk 0:02:54]}  cxd4 {[%clk 0:02:59]} 4. Nxd4 {[%clk 0:02:54]}  Nf6 {[%clk 0:02:59]} 5. Nc3 {[%clk 0:02:52]}  a6 {[%clk 0:03:00]} 6. Bg5 {[%clk 0:02:50]}  e6 {[%clk 0:03:00]} 7. f4 {[%clk 0:02:50]}  Nbd7 {[%clk 0:03:00]} 8. Qf3 {[%clk 0:02:50]}  Qc7 {[%clk 0:03:00]} 9. O-O-O {[%clk 0:02:50]}  b5 {[%clk 0:03:00]} 10. e5 {[%clk 0:02:34]}  Bb7 {[%clk 0:02:59]} 11. Qh3 {[%clk 0:02:34]}  dxe5 {[%clk 0:02:56]} 12. Nxe6 {[%clk 0:02:34]}  fxe6 {[%clk 0:02:56]} 13. Qxe6+ {[%clk 0:02:34]}  Be7 {[%clk 0:02:55]} 14. Bxb5 {[%clk 0:02:23]}  axb5 {[%clk 0:02:54]} 15. Nxb5 {[%clk 0:02:22]}  Qc6 {[%clk 0:02:34]} 16. Nd6+ {[%clk 0:02:15]}  Kd8 {[%clk 0:02:32]} 17. fxe5 {[%clk 0:02:06]}  Kc7 {[%clk 0:02:20]} 18. Qxe7 {[%clk 0:01:51]}  Nd5 {[%clk 0:02:11]} 19. Qf7 {[%clk 0:01:35]}  Rhf8 {[%clk 0:02:03]} 20. Qxg7 {[%clk 0:01:25]}  Rxa2 {[%clk 0:02:02]} 21. Kb1 {[%clk 0:00:20]}  Qa4 {[%clk 0:01:49]} 22. Nb5+ {[%clk 0:00:15]}  Qxb5 {[%clk 0:01:48]} 23. Kxa2 {[%clk 0:00:15]}  Nc3+ {[%clk 0:01:45]} 0-1


[Site "https://www.chess.com"]

[Event "Titled Tuesday Blitz April 12 Late 2022"]
[White "Dimakiling, Oliver"]
[Black "Lashkin, Jegor"]
[WhiteFideId "5202248"]
[BlackFideId "13907808"]
[WhiteElo "2426"]
[BlackElo "2368"]
[Result "1-0"]
[Round "10"]
[TimeControl "180+1"]
[Date "2022.04.12"]
[WhiteClock "0:00:32"]
[BlackClock "0:00:04"]

1. c4 {[%clk 0:03:00]}  e5 {[%clk 0:02:59]} 2. Nc3 {[%clk 0:03:01]}  Nf6 {[%clk 0:03:00]} 3. Nf3 {[%clk 0:03:00]}  Nc6 {[%clk 0:03:01]} 4. e4 {[%clk 0:03:01]}  Bb4 {[%clk 0:03:00]} 5. d3 {[%clk 0:03:00]}  d6 {[%clk 0:03:00]} 6. h3 {[%clk 0:03:00]}  a5 {[%clk 0:02:54]} 7. a3 {[%clk 0:02:59]}  Bc5 {[%clk 0:02:55]} 8. Be2 {[%clk 0:02:57]}  h6 {[%clk 0:02:53]} 9. O-O {[%clk 0:02:56]}  Nd4 {[%clk 0:02:53]} 10. Nxd4 {[%clk 0:02:54]}  Bxd4 {[%clk 0:02:54]} 11. Be3 {[%clk 0:02:55]}  Bxe3 {[%clk 0:02:24]} 12. fxe3 {[%clk 0:02:54]}  c6 {[%clk 0:02:24]} 13. Rb1 {[%clk 0:02:53]}  O-O {[%clk 0:02:24]} 14. Qe1 {[%clk 0:02:53]}  Be6 {[%clk 0:02:23]} 15. Qg3 {[%clk 0:02:52]}  Nd7 {[%clk 0:02:17]} 16. d4 {[%clk 0:02:50]}  exd4 {[%clk 0:01:55]} 17. exd4 {[%clk 0:02:49]}  Qb6 {[%clk 0:01:53]} 18. Qxd6 {[%clk 0:02:49]}  Rad8 {[%clk 0:01:45]} 19. c5 {[%clk 0:02:48]}  Qa7 {[%clk 0:01:42]} 20. Qg3 {[%clk 0:02:33]}  Kh8 {[%clk 0:01:18]} 21. Rbd1 {[%clk 0:02:30]}  f5 {[%clk 0:01:06]} 22. Kh2 {[%clk 0:02:22]}  Bb3 {[%clk 0:00:50]} 23. Rd2 {[%clk 0:02:14]}  Nxc5 {[%clk 0:00:45]} 24. exf5 {[%clk 0:02:13]}  Nd7 {[%clk 0:00:36]} 25. Ne4 {[%clk 0:02:12]}  Bd5 {[%clk 0:00:35]} 26. Nc3 {[%clk 0:02:03]}  Nf6 {[%clk 0:00:35]} 27. Rf4 {[%clk 0:01:47]}  Qb6 {[%clk 0:00:31]} 28. Bf3 {[%clk 0:01:42]}  Bf7 {[%clk 0:00:27]} 29. Rh4 {[%clk 0:01:37]}  Rde8 {[%clk 0:00:22]} 30. Ne4 {[%clk 0:01:34]}  Qd8 {[%clk 0:00:18]} 31. Nd6 {[%clk 0:01:32]}  Re7 {[%clk 0:00:17]} 32. Re2 {[%clk 0:01:23]}  Bd5 {[%clk 0:00:16]} 33. Bxd5 {[%clk 0:01:21]}  Nxd5 {[%clk 0:00:16]} 34. Re6 {[%clk 0:01:18]}  Rd7 {[%clk 0:00:11]} 35. Rexh6+ {[%clk 0:01:12]}  gxh6 {[%clk 0:00:11]} 36. Rxh6+ {[%clk 0:01:11]}  Rh7 {[%clk 0:00:12]} 37. Qe5+ {[%clk 0:01:11]}  Nf6 {[%clk 0:00:11]} 38. Rg6 {[%clk 0:01:07]}  Qe7 {[%clk 0:00:10]} 39. Qg3 {[%clk 0:00:59]}  Nh5 {[%clk 0:00:10]} 40. Qg4 {[%clk 0:00:58]}  Nf6 {[%clk 0:00:09]} 41. Qg3 {[%clk 0:00:54]}  b5 {[%clk 0:00:09]} 42. b4 {[%clk 0:00:48]}  axb4 {[%clk 0:00:09]} 43. axb4 {[%clk 0:00:48]}  Rd8 {[%clk 0:00:10]} 44. Qe5 {[%clk 0:00:40]}  Qxd6 {[%clk 0:00:08]} 45. Rxf6 {[%clk 0:00:40]}  Qxe5+ {[%clk 0:00:09]} 46. dxe5 {[%clk 0:00:40]}  Re7 {[%clk 0:00:09]} 47. e6 {[%clk 0:00:40]}  Rd4 {[%clk 0:00:08]} 48. g4 {[%clk 0:00:40]}  Rxb4 {[%clk 0:00:06]} 49. g5 {[%clk 0:00:40]}  Rf4 {[%clk 0:00:06]} 50. Kg3 {[%clk 0:00:39]}  Rf1 {[%clk 0:00:06]} 51. Kg4 {[%clk 0:00:40]}  b4 {[%clk 0:00:06]} 52. Rf8+ {[%clk 0:00:40]}  Kg7 {[%clk 0:00:06]} 53. Rb8 {[%clk 0:00:40]}  c5 {[%clk 0:00:05]} 54. h4 {[%clk 0:00:36]}  Rg1+ {[%clk 0:00:05]} 55. Kf4 {[%clk 0:00:35]}  Rf1+ {[%clk 0:00:06]} 56. Ke5 {[%clk 0:00:36]}  Re1+ {[%clk 0:00:06]} 57. Kd6 {[%clk 0:00:36]}  Ra7 {[%clk 0:00:06]} 58. f6+ {[%clk 0:00:34]}  Kg6 {[%clk 0:00:06]} 59. e7 {[%clk 0:00:34]}  Rd1+ {[%clk 0:00:05]} 60. Kxc5 {[%clk 0:00:34]}  Kf7 {[%clk 0:00:04]} 61. e8=Q# {[%clk 0:00:32]} 1-0


[Site "https://www.chess.com"]